fUST/lending_fUST_20250228
["ID","MTS","AMOUNT","RATE_DAILY","PERIOD"]
[354790840,1740706166459,-3903.89307073,0.00054795,120]
[354790841,1740706166480,-3903.89307073,0.00054795,120]
[354790842,1740706166502,-3903.89307073,0.00054795,120]
[354790843,1740706166526,-3903.89307073,0.00054795,120]
[354790844,1740706166548,-3903.89307073,0.00054795,120]
[354790845,1740706166569,-3903.89307073,0.00054795,120]
[354790846,1740706166591,-3903.89307073,0.00054795,120]
[354790847,1740706166611,-3903.89307073,0.00054795,120]
[354790848,1740706166631,-3903.89307073,0.00054795,120]
[354790849,1740706166652,-3903.89307073,0.00054795,120]
[354790850,1740706166674,-3903.89307073,0.00054795,120]
[354790851,1740706166695,-3903.89307073,0.00054795,120]
[354790852,1740706166717,-3903.89307073,0.00054795,120]
[354790853,1740706166737,-3903.89307073,0.00054795,120]
[354790854,1740706166758,-3903.89307073,0.00054795,120]
[354790855,1740706166779,-3903.89307073,0.00054795,120]
[354790856,1740706166801,-3903.89307073,0.00054795,120]
[354790857,1740706166821,-3903.89307073,0.00054795,120]
[354790858,1740706166841,-3903.89307073,0.00054795,120]
[354790859,1740706166862,-3903.89307073,0.00054795,120]
[354790860,1740706166885,-3903.89307073,0.00054795,120]
[354790861,1740706166908,-3903.89307073,0.00054795,120]
[354790862,1740706166934,-3903.89307073,0.00054795,120]
[354790863,1740706166956,-3903.89307073,0.00054795,120]
[354790864,1740706166977,-3840.34132307,0.00054795,120]
[354790865,1740706166997,-3840.34132307,0.00054795,120]
[354790866,1740706167018,-3840.34132307,0.00054795,120]
[354790867,1740706167040,-3840.34132307,0.00054795,120]
[354790868,1740706167063,-3840.34132307,0.00054795,120]
[354790869,1740706167084,-3840.34132307,0.00054795,120]
[354790870,1740706167105,-3840.34132307,0.00054795,120]
[354790871,1740706167126,-3840.34132307,0.00054795,120]
[354790872,1740706167147,-3840.34132307,0.00054795,120]
[354790873,1740706167171,-3840.34132307,0.00054795,120]
[354790874,1740706167194,-3840.34132307,0.00054795,120]
[354790875,1740706167217,-3840.34132307,0.00054795,120]
[354790876,1740706167238,-3840.34132307,0.00054795,120]
[354790877,1740706167259,-3840.34132307,0.00054795,120]
[354790878,1740706167280,-3840.34132307,0.00054795,120]
[354790879,1740706167301,-3840.34132307,0.00054795,120]
[354790880,1740706167324,-3840.34132307,0.00054795,120]
[354790881,1740706167345,-3840.34132307,0.00054795,120]
[354790882,1740706167366,-3840.34132307,0.00054795,120]
[354790883,1740706167387,-3840.34132307,0.00054795,120]
[354790884,1740706167407,-3840.34132307,0.00054795,120]
[354790885,1740706167432,-3840.34132307,0.00054795,120]
[354790886,1740706167453,-3840.34132307,0.00054795,120]
[354790887,1740706167477,-3840.34132307,0.00054795,120]
[354790888,1740706167498,-3840.34132307,0.00054795,120]
[354790889,1740706167518,-3840.34132307,0.00054795,120]
[354790890,1740706167539,-3840.34132307,0.00054795,120]
[354790891,1740706167559,-3840.34132307,0.00054795,120]
[354790892,1740706167580,-3840.34132307,0.00054795,120]
[354790893,1740706167600,-3840.34132307,0.00054795,120]
[354790894,1740706167620,-3840.34132307,0.00054795,120]
[354790895,1740706167641,-3840.34132307,0.00054795,120]
[354790896,1740706167661,-3840.34132307,0.00054795,120]
[354790897,1740706167683,-3840.34132307,0.00054795,120]
[354790898,1740706167705,-3840.34132307,0.00054795,120]
[354790899,1740706167729,-3840.34132307,0.00054795,120]
[354790900,1740706167750,-3840.34132307,0.00054795,120]
[354790901,1740706167771,-3947.01747091,0.00054795,120]
[354790902,1740706167791,-3947.01747091,0.00054795,120]
[354790903,1740706167812,-3947.01747091,0.00054795,120]
[354790904,1740706167833,-3947.01747091,0.00054795,120]
[354790905,1740706167853,-3947.01747091,0.00054795,120]
[354790906,1740706167875,-3947.01747091,0.00054795,120]
[354790907,1740706167896,-3947.01747091,0.00054795,120]
[354790908,1740706167919,-151.0,0.00054795,120]
[354790909,1740706167940,-151.0,0.00054795,120]
[354790910,1740706167964,-151.0,0.00054795,120]
[354790911,1740706167986,-249.947543,0.00054795,120]
[354790912,1740706168008,-500.0,0.00054795,120]
[354790913,1740706168030,-162.95,0.000548,30]
[354790914,1740706168052,-29925.34,0.000548,30]
[354790915,1740706168076,-488.47,0.000548,30]
[354790916,1740706168098,-151.0,0.000548,120]
[354790917,1740706168120,-1162.44,0.000548,30]
[354790918,1740706168141,-341.19,0.000548,30]
[354790919,1740706168164,-274.0,0.00055,120]
[354790920,1740706168186,-895.95,0.00055026,120]
[354790921,1740706168209,-895.95,0.000553,120]
[354790922,1740706168230,-500.0,0.00055342,120]
[354790923,1740706168251,-895.95,0.00055573,120]
[354790924,1740706168272,-895.95,0.00055847,120]
[354790925,1740706168292,-500.0,0.0005589,120]
[354790926,1740706168316,-895.95,0.00056121,120]
[354790927,1740706168336,-895.95,0.00056395,120]
[354790928,1740706168357,-500.0,0.00056438,120]
[354790929,1740706168378,-895.95,0.00056669,120]
[354790930,1740706168399,-895.95,0.00056943,120]
[354790931,1740706168420,-500.0,0.00056986,120]
[354790932,1740706168440,-274.0,0.00057,120]
[354790933,1740706168461,-895.95,0.00057217,120]
[354790934,1740706168481,-895.95,0.00057491,120]
[354790935,1740706168501,-500.0,0.00057534,120]
[354790936,1740706168521,-895.95,0.00057765,120]
[354790937,1740706168541,-895.95,0.00058039,120]
[354790938,1740706168562,-500.0,0.00058082,120]
[354790939,1740706168582,-896.111,0.00058313,120]
[354790940,1740706168602,-500.0,0.0005863,120]
[354790941,1740706168623,-274.0,0.00059,120]
[354790942,1740706168644,-500.0,0.00059178,120]
[354790943,1740706168665,-5601.79,0.00059409,120]
[354790944,1740706168686,-13.78728819,0.00059726,120]
[354790945,1740706168776,-151.0,0.00054795,120]
[354790946,1740706168802,151.0,0.00054795,120]
[354790947,1740706168828,151.0,0.00054795,120]
[354790948,1740706169051,151.0,0.00054795,120]
[354790949,1740706169488,151.0,0.00054795,120]
[354790950,1740706169787,151.0,0.00054795,120]
[354790951,1740706170228,151.0,0.00054795,120]
[354790952,1740706170415,151.0,0.00054795,120]
[354790953,1740706170712,151.0,0.00055573,120]
[354790954,1740706170736,1903.0,0.00051982,10]
[354790956,1740706171308,151.0,0.00054795,120]
[354790957,1740706177742,151.0,0.00054795,120]
[354790958,1740706181420,26932.8,0.00052,30]
[354790959,1740706181830,1585.84,0.00051982,10]
[354790960,1740706192876,1321.53,0.00051982,10]
[354790961,1740706204159,500.0,0.00054077,7]
[354790962,1740706204506,1101.28,0.00051982,10]
[354790967,1740706209406,163.45699076,0.00051991,120]
[354790968,1740706213957,191.178943,0.00054795,120]
[354790969,1740706214609,163.0,0.000537,120]
[354790970,1740706215515,937.93,0.00051982,10]
[354790971,1740706216241,33749.28170407,0.00051991,4]
[354791027,1740706232910,-781.61,0.00051981,10]
[354791028,1740706232921,-7748.9881598,0.00051991,4]
[354791029,1740706232934,-42259.01963615,0.00051991,4]
[354791035,1740706238744,-312.75211482,0.00051981,10]
[354791038,1740706238757,-338.58788518,0.00051981,10]
[354791040,1740706238771,-173.51659848,0.00051991,31]
[354791041,1740706238780,-824.99151634,0.00051991,4]
[354791042,1740706238791,-116476.74547364,0.00051991,4]
[354791043,1740706238801,-26808.46064108,0.00051992,15]
[354791044,1740706238813,-35510.32308166,0.00051992,15]
[354791053,1740706242759,-331.40099454,0.00051992,15]
[354791075,1740706244147,-4035.25091562,0.00051992,15]
[354791076,1740706244160,-5207.00698244,0.00051992,15]
[354791077,1740706244170,-2514.58874253,0.00051992,2]
[354791090,1740706249248,-13032.81222206,0.00051992,2]
[354791091,1740706249273,-2009.42659591,0.00051992,2]
[354791092,1740706249285,-940.0,0.00051992,2]
[354791093,1740706249297,-30030.42547039,0.00051992,2]
[354791094,1740706268124,184.9481985,0.00040996,2]
[354791095,1740706312968,466.28025017,0.00027,30]
[354791096,1740706312995,33.71974983,0.00027,30]
[354791097,1740706380565,1479.0,0.00051992,30]
[354791101,1740706503116,500.0,0.000311,5]
[354791102,1740706549164,-151.0,0.00045,120]
[354791103,1740706549190,-822.0,0.00049,120]
[354791104,1740706549217,-152.8,0.0005,120]
[354791105,1740706549245,-822.0,0.00051,120]
[354791106,1740706549268,-167.0,0.00051,120]
[354791107,1740706549291,-285.2,0.000515,67]
[354791108,1740706560635,509.107427,0.00032877,2]
[354791109,1740706560955,509.107427,0.00036008,2]
[354791110,1740706561319,509.107427,0.00039139,2]
[354791111,1740706563497,250.0,0.00025457,3]
[354791112,1740706563845,249.0,0.00025457,3]
[354791116,1740706793566,1086.9820509,0.00051952,35]
[354791117,1740707015249,250.0,0.00039419,2]
[354791119,1740707052319,-356.6448946,0.00040563,2]
[354791120,1740707052344,-509.107427,0.0004227,2]
[354791121,1740707052374,-196.4948134,0.00044542,2]
[354791122,1740707052401,-355.9753434,0.00044598,2]
[354791123,1740707052426,-1956.11512348,0.00045113,120]
[354791124,1740707052450,-158.43,0.00045203,2]
[354791125,1740707052473,-550.0,0.00045212,5]
[354791126,1740707052497,-24900.0,0.00045213,2]
[354791127,1740707052519,-509.107427,0.00045401,2]
[354791128,1740707052543,-262.25036414,0.000459,10]
[354791129,1740707052566,-863.55922549,0.00046189,15]
[354791130,1740707052589,-770.0,0.00047964,5]
[354791131,1740707052612,-509.107427,0.00048532,2]
[354791132,1740707052636,-1627.5551261,0.00048724,120]
[354791133,1740707052659,-158.43,0.0004903,2]
[354791134,1740707052682,-2000.0,0.00049041,10]
[354791135,1740707052704,-2026.74774711,0.00049068,10]
[354791136,1740707052727,-158.43,0.00049101,2]
[354791137,1740707052750,-1500.0,0.00049111,120]
[354791138,1740707052772,-160.0,0.00050198,2]
[354791139,1740707052796,-509.107427,0.00051663,2]
[354791140,1740707052820,-379.89073634,0.0005185,2]
[354791141,1740707052845,-158.43,0.00051883,2]
[354791142,1740707052871,-193.13,0.00051893,94]
[354791143,1740707052894,-38992.01714715,0.000519,2]
[354791144,1740707052917,-609.31,0.00051939,10]
[354791145,1740707052941,-1043.35,0.00051939,10]
[354791146,1740707052964,-158.43,0.00051941,2]
[354791147,1740707052987,-158.43,0.00051941,2]
[354791148,1740707053012,-500.0,0.00051949,2]
[354791149,1740707053037,-500.0,0.00051949,120]
[354791150,1740707053062,-206.22245354,0.00051949,120]
[354791151,1740707053088,-598.57146073,0.00051949,120]
[354791152,1740707053113,-500.0,0.00051949,2]
[354791153,1740707053142,-500.0,0.00051949,120]
[354791154,1740707053166,-500.0,0.00051949,2]
[354791155,1740707053191,-500.0,0.00051949,2]
[354791156,1740707053215,-500.0,0.00051949,2]
[354791157,1740707053241,-500.0,0.00051949,120]
[354791158,1740707053268,-500.0,0.00051949,2]
[354791159,1740707053295,-500.0,0.00051949,2]
[354791160,1740707053320,-423.74972658,0.00051949,120]
[354791161,1740707053347,-500.0,0.00051949,2]
[354791162,1740707053377,-500.0,0.00051949,2]
[354791163,1740707053406,-500.0,0.00051949,2]
[354791164,1740707053431,-500.0,0.00051949,2]
[354791165,1740707053456,-500.0,0.00051949,2]
[354791166,1740707053483,-500.0,0.00051949,2]
[354791167,1740707053507,-500.0,0.00051949,2]
[354791168,1740707053531,-500.0,0.00051949,2]
[354791169,1740707053556,-500.0,0.00051949,2]
[354791170,1740707053580,-500.0,0.00051949,2]
[354791171,1740707053605,-500.0,0.00051949,2]
[354791172,1740707053632,-500.0,0.00051949,2]
[354791173,1740707053656,-500.0,0.00051949,2]
[354791174,1740707053681,-500.0,0.00051949,2]
[354791175,1740707053706,-500.0,0.00051949,2]
[354791176,1740707053730,-500.0,0.00051949,2]
[354791177,1740707053754,-500.0,0.00051949,2]
[354791178,1740707053778,-500.0,0.00051949,2]
[354791179,1740707053802,-500.0,0.00051949,2]
[354791180,1740707053826,-500.0,0.00051949,2]
[354791181,1740707053850,-474.89348929,0.00051949,2]
[354791182,1740707053876,-500.0,0.00051949,2]
[354791183,1740707053899,-500.0,0.00051949,2]
[354791184,1740707053922,-500.0,0.00051949,2]
[354791185,1740707053947,-500.0,0.00051949,2]
[354791186,1740707053970,-500.0,0.00051949,2]
[354791187,1740707053994,-500.0,0.00051949,2]
[354791188,1740707054020,-500.0,0.00051949,2]
[354791189,1740707054045,-500.0,0.00051949,2]
[354791190,1740707054068,-504.97000921,0.0005195,2]
[354791191,1740707054092,-8256.85,0.00051951,120]
[354791192,1740707054117,-846.56,0.00051952,35]
[354791193,1740707054140,-426.07877897,0.00051973,2]
[354791194,1740707054164,-502.66996138,0.00051973,10]
[354791195,1740707054188,-152.50310619,0.00051973,10]
[354791196,1740707054213,-500.80743544,0.00051973,10]
[354791197,1740707054237,-519.59527981,0.00051973,10]
[354791198,1740707054260,-7852.842,0.00052,100]
[354791199,1740707054284,-339.67,0.00052,30]
[354791200,1740707054308,-1151.73,0.00052,30]
[354791201,1740707054330,-167.31,0.00052,30]
[354791202,1740707054358,-525.79,0.00052,30]
[354791203,1740707054384,-31983.82,0.00052,30]
[354791204,1740707054410,-1829.992076,0.00052,67]
[354791205,1740707054448,-387.07323418,0.00052695,4]
[354791206,1740707054478,-320.61,0.000529,51]
[354791207,1740707054654,-320.61,0.000529,51]
[354791208,1740707054687,-320.61,0.000529,51]
[354791209,1740707054716,-320.61,0.000529,51]
[354791210,1740707054743,-320.61,0.000529,51]
[354791211,1740707054771,-320.61,0.000529,51]
[354791212,1740707054799,-320.61,0.000529,51]
[354791213,1740707054826,-320.61,0.000529,51]
[354791214,1740707054853,-320.61,0.000529,51]
[354791215,1740707054881,-320.61,0.000529,51]
[354791216,1740707054908,-320.61,0.000529,51]
[354791217,1740707054934,-320.61,0.000529,51]
[354791218,1740707054957,-10000.0,0.00053,120]
[354791219,1740707054982,-822.0,0.00053,120]
[354791220,1740707055004,-379.89073634,0.0005323,2]
[354791221,1740707055028,-500.0,0.00053435,7]
[354791222,1740707055057,-500.0,0.00053435,10]
[354791223,1740707055083,-1007.63,0.000538,120]
[354791224,1740707055106,-501.04887365,0.00054124,10]
[354791225,1740707055134,-500.0,0.00054124,10]
[354791226,1740707055158,-504.58133758,0.00054215,10]
[354791227,1740707055182,-379.89073634,0.00054611,2]
[354791228,1740707055205,-520.64865532,0.00054794,120]
[354791229,1740707055229,-282.75536067,0.00054794,120]
[354791230,1740707055253,-535.98978049,0.00054794,120]
[354791231,1740707055276,-500.95476873,0.00054794,120]
[354791232,1740707055300,-503.85740609,0.00054794,120]
[354791233,1740707055324,-508.15552735,0.00054794,120]
[354791234,1740707055348,-517.82761982,0.00054794,120]
[354791235,1740707055378,-500.0,0.00054794,120]
[354791236,1740707055403,-526.53838162,0.00054794,120]
[354791237,1740707055426,-534.0980843,0.00054794,120]
[354791238,1740707055449,-537.35692296,0.00054794,120]
[354791239,1740707055472,-535.04842025,0.00054794,120]
[354791240,1740707055497,-509.66903764,0.00054794,120]
[354791241,1740707055520,-508.43947649,0.00054794,30]
[354791242,1740707055545,-500.0,0.00054794,120]
[354791243,1740707055568,-384.37437515,0.00054794,120]
[354791244,1740707055593,-304.32784148,0.00054794,120]
[354791245,1740707055618,-513.86520861,0.00054794,120]
[354791246,1740707055642,-510.100688,0.00054794,120]
[354791247,1740707055666,-503.38920617,0.00054794,120]
[354791248,1740707055690,-519.03982362,0.00054794,120]
[354791249,1740707055714,-502.63349858,0.00054794,120]
[354791250,1740707055737,-407.98904754,0.00054794,120]
[354791251,1740707055761,-500.0,0.00054794,120]
[354791252,1740707055784,-500.0,0.00054794,120]
[354791253,1740707055807,-542.38437069,0.00054794,120]
[354791254,1740707055832,-514.86059196,0.00054794,120]
[354791255,1740707055855,-516.65757901,0.00054794,120]
[354791256,1740707055881,-511.1611147,0.00054794,120]
[354791257,1740707055907,-527.71577326,0.00054794,120]
[354791258,1740707055932,-292.12905046,0.00054794,120]
[354791259,1740707055956,-507.1282341,0.00054794,120]
[354791260,1740707055980,-502.89614506,0.00054794,120]
[354791261,1740707056003,-512.6294473,0.00054794,120]
[354791262,1740707056026,-189.42086927,0.00054794,120]
[354791263,1740707056050,-513.65518695,0.00054794,120]
[354791264,1740707056074,-500.92640267,0.00054794,120]
[354791265,1740707056097,-504.46334569,0.00054794,120]
[354791266,1740707056124,-504.28195474,0.00054794,120]
[354791267,1740707056147,-520.78608591,0.00054794,120]
[354791268,1740707056170,-500.0,0.00054794,120]
[354791269,1740707056193,-504.52965397,0.00054794,120]
[354791270,1740707056216,-503.43214631,0.00054794,120]
[354791271,1740707056239,-507.73821387,0.00054794,120]
[354791272,1740707056262,-519.19380994,0.00054794,120]
[354791273,1740707056284,-506.6242551,0.00054794,120]
[354791274,1740707056308,-505.33563903,0.00054794,120]
[354791275,1740707056333,-507.41619547,0.00054794,120]
[354791276,1740707056358,-518.23330897,0.00054794,120]
[354791277,1740707056383,-509.41978519,0.00054794,120]
[354791278,1740707056409,-506.00693528,0.00054794,120]
[354791279,1740707056432,-548.55608446,0.00054794,120]
[354791280,1740707056456,-511.45045399,0.00054794,120]
[354791281,1740707056484,-500.0,0.00054794,120]
[354791282,1740707056507,-518.46091917,0.00054794,120]
[354791283,1740707056531,-1006.45307203,0.00054794,120]
[354791284,1740707056555,-513.43790025,0.00054794,120]
[354791285,1740707056580,-520.00982991,0.00054794,120]
[354791286,1740707056603,-514.15388734,0.00054794,120]
[354791287,1740707056629,-500.0,0.00054794,120]
[354791288,1740707056652,-512.28860115,0.00054794,120]
[354791289,1740707056675,-512.51234744,0.00054794,120]
[354791290,1740707056698,-500.0,0.00054794,120]
[354791291,1740707056722,-611.39508352,0.00054794,120]
[354791292,1740707056746,-546.9865768,0.00054794,120]
[354791293,1740707056768,-505.38307658,0.00054794,2]
[354791294,1740707056790,-516.26602901,0.00054794,120]
[354791295,1740707056813,-500.0,0.00054794,120]
[354791296,1740707056836,-500.0,0.00054794,120]
[354791297,1740707056859,-159.26850942,0.00054794,120]
[354791298,1740707056882,-514.36798608,0.00054794,120]
[354791299,1740707056905,-515.96292324,0.00054794,120]
[354791300,1740707056929,-609.29545929,0.00054794,120]
[354791301,1740707056952,-199.3328569,0.00054794,120]
[354791302,1740707056976,-258.96711993,0.00054794,120]
[354791303,1740707057000,-248.11731558,0.00054794,120]
[354791304,1740707057024,-500.0,0.00054794,120]
[354791305,1740707057050,-204.96448885,0.00054794,120]
[354791306,1740707057074,-531.42245388,0.00054794,120]
[354791307,1740707057102,-157.33590756,0.00054794,120]
[354791308,1740707057130,-500.0,0.00054794,120]
[354791309,1740707057155,-508.49695625,0.00054794,120]
[354791310,1740707057180,-500.0,0.00054794,120]
[354791311,1740707057204,-500.0,0.00054794,120]
[354791312,1740707057229,-500.0,0.00054794,120]
[354791313,1740707057254,-512.68820064,0.00054794,120]
[354791314,1740707057278,-514.09147956,0.00054794,120]
[354791315,1740707057301,-508.08178075,0.00054794,120]
[354791316,1740707057325,-500.0,0.00054794,120]
[354791317,1740707057349,-502.61714696,0.00054794,120]
[354791318,1740707057376,-506.00756563,0.00054794,120]
[354791319,1740707057400,-513.63299814,0.00054794,120]
[354791320,1740707057423,-500.0,0.00054794,120]
[354791321,1740707057448,-504.09446363,0.00054794,120]
[354791322,1740707057476,-500.0,0.00054794,120]
[354791323,1740707057607,-500.0,0.00054794,120]
[354791324,1740707057636,-500.0,0.00054794,6]
[354791325,1740707057660,-500.0,0.00054794,120]
[354791326,1740707057684,-500.0,0.00054794,120]
[354791327,1740707057707,-513.78318679,0.00054794,120]
[354791328,1740707057732,-500.0,0.00054794,120]
[354791329,1740707057756,-178.86014722,0.00054794,120]
[354791330,1740707057780,-500.0,0.00054794,120]
[354791331,1740707057804,-534.44683109,0.00054794,120]
[354791332,1740707057828,-500.0,0.00054794,120]
[354791333,1740707057852,-500.0,0.00054794,120]
[354791334,1740707057881,-500.0,0.00054794,120]
[354791335,1740707057905,-500.0,0.00054794,120]
[354791336,1740707057930,-500.0,0.00054794,120]
[354791337,1740707057954,-498.26140931,0.00054794,120]
[354791338,1740707057977,-500.0,0.00054794,120]
[354791339,1740707058001,-500.0,0.00054794,120]
[354791340,1740707058025,-500.0,0.00054794,120]
[354791341,1740707058048,-500.00061048,0.00054794,120]
[354791342,1740707058073,-500.0,0.00054794,120]
[354791343,1740707058097,-508.55993929,0.00054794,120]
[354791344,1740707058124,-506.38308202,0.00054794,120]
[354791345,1740707058149,-551.47671176,0.00054794,120]
[354791346,1740707058172,-508.33374781,0.00054794,120]
[354791347,1740707058198,-404.21909129,0.00054794,120]
[354791348,1740707058223,-500.0,0.00054794,120]
[354791349,1740707058247,-532.56897605,0.00054794,120]
[354791350,1740707058272,-586.55,0.00054794,7]
[354791351,1740707058297,-500.0,0.00054794,120]
[354791352,1740707058323,-500.0,0.00054794,120]
[354791353,1740707058348,-537.65335687,0.00054794,120]
[354791354,1740707058377,-500.0,0.00054794,120]
[354791355,1740707058402,-500.0,0.00054794,120]
[354791356,1740707058426,-500.0,0.00054794,120]
[354791357,1740707058451,-478.05764384,0.00054794,120]
[354791358,1740707058476,-500.0,0.00054794,120]
[354791359,1740707058501,-565.3580774,0.00054794,120]
[354791360,1740707058524,-509.107427,0.00054795,60]
[354791361,1740707058548,-151.0,0.00054795,120]
[354791362,1740707058573,-229.049522,0.00054795,120]
[354791363,1740707058597,-151.0,0.00054795,120]
[354791364,1740707058622,-151.0,0.00054795,120]
[354791365,1740707058646,-709.17,0.000548,2]
[354791366,1740707058671,-822.0,0.00055,120]
[354791367,1740707058696,-167.0,0.00055,120]
[354791368,1740707058720,-649.84729947,0.00055342,120]
[354791369,1740707058745,-532.07452688,0.00055342,120]
[354791370,1740707058769,-525.6497369,0.00055342,120]
[354791371,1740707058794,-548.93598332,0.00055342,120]
[354791372,1740707058818,-513.59220194,0.00055342,120]
[354791373,1740707058842,-531.99631643,0.00055342,120]
[354791374,1740707058868,-534.12998477,0.00055342,120]
[354791375,1740707058895,-500.0,0.00055342,120]
[354791376,1740707058920,-196.85599577,0.00055342,120]
[354791377,1740707058945,-289.48289798,0.00055342,120]
[354791378,1740707058971,-500.0,0.00055342,120]
[354791379,1740707058997,-151.0,0.00055342,120]
[354791380,1740707059022,-568.22359477,0.00055342,120]
[354791381,1740707059047,-171.11350775,0.00055342,120]
[354791382,1740707059071,-515.76872016,0.00055342,120]
[354791383,1740707059097,-500.0,0.00055342,120]
[354791384,1740707059121,-151.0,0.00055342,120]
[354791385,1740707059149,-151.0,0.00055342,120]
[354791386,1740707059174,-151.0,0.00055342,120]
[354791387,1740707059201,-500.0,0.00055342,120]
[354791388,1740707059226,-151.0,0.00055342,120]
[354791389,1740707059251,-151.0,0.00055342,120]
[354791390,1740707059275,-500.0,0.00055342,120]
[354791391,1740707059301,-500.0,0.00055342,120]
[354791392,1740707059327,-500.0,0.00055342,120]
[354791393,1740707059355,-500.0,0.00055342,6]
[354791394,1740707059386,-157.226055,0.00055342,120]
[354791395,1740707059413,-500.0,0.00055342,120]
[354791396,1740707059438,-529.83303252,0.00055342,120]
[354791397,1740707059464,-500.0,0.00055342,120]
[354791398,1740707059490,-151.0,0.00055342,120]
[354791399,1740707059514,-640.10491627,0.00055342,120]
[354791400,1740707059539,-500.0,0.00055342,120]
[354791401,1740707059564,-535.10372993,0.00055342,120]
[354791402,1740707059589,-500.0,0.00055342,120]
[354791403,1740707059613,-514.65350393,0.00055342,120]
[354791404,1740707059639,-500.0,0.00055342,120]
[354791405,1740707059663,-522.54556989,0.00055342,120]
[354791406,1740707059686,-536.55738149,0.00055342,120]
[354791407,1740707059710,-500.0,0.00055342,120]
[354791408,1740707059735,-586.55,0.00055342,7]
[354791409,1740707059760,-500.0,0.00055342,120]
[354791410,1740707059784,-500.0,0.00055342,120]
[354791411,1740707059809,-500.0,0.00055342,120]
[354791412,1740707059833,-555.42804464,0.00055342,120]
[354791413,1740707059858,-215.42057011,0.00055342,120]
[354791414,1740707059885,-500.0,0.00055492,14]
[354791415,1740707059909,-500.0,0.00055492,14]
[354791416,1740707059935,-506.43847128,0.00055492,15]
[354791417,1740707059958,-502.6130963,0.00055492,14]
[354791418,1740707059981,-500.0,0.00055492,14]
[354791419,1740707060006,-151.0,0.0005589,120]
[354791420,1740707060031,-500.78762676,0.0005589,120]
[354791421,1740707060056,-360.05199676,0.0005589,120]
[354791422,1740707060081,-151.0,0.0005589,120]
[354791423,1740707060106,-544.86960374,0.0005589,120]
[354791424,1740707060136,-205.83113367,0.0005589,120]
[354791425,1740707060161,-321.54764878,0.0005589,120]
[354791426,1740707060187,-555.41586763,0.0005589,120]
[354791427,1740707060213,-522.25243548,0.0005589,120]
[354791428,1740707060238,-500.0,0.0005589,6]
[354791429,1740707060264,-220.84008642,0.0005589,120]
[354791430,1740707060289,-500.0,0.0005589,120]
[354791431,1740707060314,-582.03548872,0.0005589,120]
[354791432,1740707060338,-395.98666985,0.0005589,120]
[354791433,1740707060363,-500.0,0.0005589,120]
[354791434,1740707060391,-643.8602269,0.0005589,120]
[354791435,1740707060416,-586.55,0.0005589,7]
[354791436,1740707060441,-500.0,0.0005589,120]
[354791437,1740707060563,-278.3716346,0.0005589,120]
[354791438,1740707060591,-500.0,0.0005589,120]
[354791439,1740707060616,-379.89073634,0.00055991,2]
[354791440,1740707060643,-500.0,0.00056438,6]
[354791441,1740707060668,-199.11016231,0.00056438,120]
[354791442,1740707060693,-500.0,0.00056438,120]
[354791443,1740707060718,-586.55,0.00056438,7]
[354791444,1740707060742,-500.0,0.00056438,120]
[354791445,1740707060766,-500.0,0.00056438,120]
[354791446,1740707060790,-509.61459662,0.00056973,15]
[354791447,1740707060814,-500.0,0.00056986,6]
[354791448,1740707060839,-500.0,0.00056986,120]
[354791449,1740707060864,-586.55,0.00056986,7]
[354791450,1740707060891,-500.0,0.00056986,120]
[354791451,1740707060915,-500.0,0.00056986,120]
[354791452,1740707060941,-822.0,0.00057,120]
[354791453,1740707060965,-50369.60466403,0.00057,120]
[354791454,1740707060989,-159.480465,0.00057,120]
[354791455,1740707061013,-151.0,0.00057,120]